bitfinex-derivatives/quotes_BTCF0:USTF0_20250720
["timestamp","ask_amount","ask_price","bid_price","bid_amount"]
[1752984553492,1.49407307,118040.0,118030.0,0.00276]
[1752984557694,1.49407307,118040.0,118030.0,1e-07]
[1752984560795,1.49411417,118040.0,118030.0,1e-07]
[1752984561900,0.89347417,118040.0,118030.0,1e-07]
[1752984562202,1.49235417,118040.0,118030.0,1e-07]
[1752984566501,1.49243348,118040.0,118030.0,1e-07]
[1752984567789,0.89355348,118040.0,118030.0,1e-07]
[1752984567995,0.89355348,118040.0,118030.0,0.0715901]
[1752984567996,1.49207348,118040.0,118030.0,0.0715901]
[1752984568591,1.49207348,118040.0,118030.0,0.0045201]
[1752984568994,1.23626174,118040.0,118030.0,0.0045201]
[1752984569296,1.49207348,118040.0,118030.0,0.0045201]
[1752984569499,0.89355348,118040.0,118030.0,0.0045201]
[1752984569897,1.49207348,118040.0,118030.0,0.0045201]
[1752984571196,1.49231348,118040.0,118030.0,0.0045201]
[1752984572303,1.44333348,118040.0,118030.0,1e-07]
[1752984572894,1.18752174,118040.0,118030.0,1e-07]
[1752984573198,1.44333348,118040.0,118030.0,1e-07]
[1752984573503,1.44334073,118040.0,118030.0,1e-07]
[1752984576191,1.5712466,118040.0,118030.0,1e-07]
[1752984576390,1.18752899,118040.0,118030.0,1e-07]
[1752984576697,1.44334073,118040.0,118030.0,1e-07]
[1752984576911,1.5712466,118040.0,118030.0,1e-07]
[1752984577201,1.74929311,118040.0,118030.0,1e-07]
[1752984585807,1.57985311,118040.0,118030.0,1e-07]
[1752984586004,1.74929311,118040.0,118030.0,1e-07]
[1752984587715,1.94065311,118040.0,118030.0,1e-07]
[1752984588618,2.11009311,118040.0,118030.0,1e-07]
[1752984590012,1.85428137,118040.0,118030.0,1e-07]
[1752984590213,2.11009311,118040.0,118030.0,1e-07]
[1752984594415,1.85428137,118040.0,118030.0,1e-07]
[1752984594620,2.11009311,118040.0,118030.0,1e-07]
[1752984598726,1.94065311,118040.0,118030.0,1e-07]
[1752984600525,1.55220899,118040.0,118030.0,1e-07]
[1752984600725,1.80790073,118040.0,118030.0,1e-07]
[1752984600917,1.20538073,118040.0,118030.0,1e-07]
[1752984601227,0.71667486,118040.0,118030.0,0.0857501]
[1752984601426,1.31939486,118040.0,118030.0,0.21365597]
[1752984601725,1.36783486,118040.0,118030.0,0.21365597]
[1752984601923,1.23992899,118040.0,118030.0,0.21365597]
[1752984602118,1.36783486,118040.0,118030.0,0.21365597]
[1752984602317,0.63720899,118040.0,118030.0,0.21365597]
[1752984602620,1.36791486,118040.0,118030.0,0.21365597]
[1752984604628,1.24000899,118040.0,118030.0,0.21365597]
[1752984604827,1.36791486,118040.0,118030.0,0.21365597]
[1752984605126,0.76511486,118040.0,118030.0,0.21365597]
[1752984605328,1.23944899,118040.0,118030.0,0.21365597]
[1752984605519,1.36735486,118040.0,118030.0,0.21365597]
[1752984605929,0.63720899,118040.0,118030.0,0.21365597]
[1752984606123,1.36731486,118040.0,118030.0,0.21365597]
[1752984607028,1.36731486,118040.0,118030.0,0.0857501]
[1752984607228,1.36731486,118040.0,118030.0,0.21365597]
[1752984608329,0.40431486,118040.0,118030.0,0.0857501]
[1752984608530,1.00607486,118040.0,118030.0,0.0857501]
[1752984608829,0.87816899,118040.0,118030.0,0.0857501]
[1752984609027,1.00607486,118040.0,118030.0,0.21365597]
[1752984609529,1.13398073,118040.0,118030.0,0.0857501]
[1752984610931,1.00607486,118040.0,118030.0,0.21365597]
[1752984611330,1.13398073,118040.0,118030.0,0.21365597]
[1752984611631,1.13398073,118040.0,118030.0,0.0857501]
[1752984614729,1.13698073,118040.0,118030.0,0.0857501]
[1752984616136,1.44634073,118040.0,118030.0,1e-07]
[1752984621136,1.19052899,118040.0,118030.0,1e-07]
[1752984621339,1.44634073,118040.0,118030.0,1e-07]
[1752984635341,1.19052899,118040.0,118030.0,1e-07]
[1752984635541,1.44634073,118040.0,118030.0,1e-07]
[1752984637843,1.08554073,118040.0,118030.0,1e-07]
[1752984638341,1.44634073,118040.0,118030.0,1e-07]
[1752984638641,1.08554073,118040.0,118030.0,1e-07]
[1752984638848,1.44634073,118040.0,118030.0,0.0049401]
[1752984639047,1.49220073,118040.0,118030.0,0.0049401]
[1752984639248,1.49520073,118040.0,118030.0,1e-07]
[1752984639448,1.44634073,118040.0,118030.0,1e-07]
[1752984639742,1.08358073,118040.0,118030.0,1e-07]
[1752984639948,1.44438073,118040.0,118030.0,1e-07]
[1752984645752,1.44462073,118040.0,118030.0,1e-07]
[1752984646455,0.84458073,118040.0,118030.0,1e-07]
[1752984646654,1.44426073,118040.0,118030.0,1e-07]
[1752984649052,1.44426073,118040.0,118030.0,0.0049401]
[1752984649252,1.44726073,118040.0,118030.0,0.0049401]
[1752984649452,1.49312073,118040.0,118030.0,0.0049401]
[1752984650544,1.49312073,118040.0,118030.0,1e-07]
[1752984650752,1.44426073,118040.0,118030.0,1e-07]
[1752984652755,1.44419187,118040.0,118030.0,1e-07]
[1752984653255,1.44419187,118040.0,118030.0,0.0027601]
[1752984653556,1.49075187,118040.0,118030.0,0.0027601]
[1752984653757,1.49375187,118040.0,118030.0,0.0027601]
[1752984653956,1.23794013,118040.0,118030.0,0.0027601]
[1752984654152,1.49375187,118040.0,118030.0,0.0027601]
[1752984656957,0.89407187,118040.0,118030.0,0.0027601]
[1752984657154,1.49323187,118040.0,118030.0,0.0027601]
[1752984660560,1.47477344,118040.0,118030.0,0.0027601]
[1752984661058,1.49324275,118040.0,118030.0,0.0027601]
[1752984661856,1.23743101,118040.0,118030.0,0.0027601]
[1752984662161,1.49324275,118040.0,118030.0,0.0027601]
[1752984662562,1.62114862,118040.0,118030.0,1e-07]
[1752984662758,1.49324275,118040.0,118030.0,1e-07]
[1752984662952,0.62017101,118040.0,118030.0,0.0187701]
[1752984663155,0.19481091,118040.0,118030.0,1.49332183]
[1752984663357,0.19481091,118040.0,118030.0,1.66267773]
[1752984663560,0.002,118040.0,118030.0,1.72353577]
[1752984663759,0.18851281,118050.0,118040.0,0.2517416]
[1752984664063,0.18851281,118050.0,118040.0,1.68198725]
[1752984664253,0.18851281,118050.0,118040.0,1.48141125]
[1752984664453,0.0846607,118060.0,118050.0,0.2168672]
[1752984664661,0.0846607,118060.0,118050.0,1.20320894]
[1752984664662,0.2539736,118060.0,118050.0,1.20320894]
[1752984664862,0.2539736,118060.0,118050.0,1.68348298]
[1752984665061,0.2539736,118060.0,118050.0,1.16767124]
[1752984665252,0.2539736,118060.0,118050.0,1.23377165]
[1752984665456,0.2539736,118060.0,118050.0,1.58377165]
[1752984665659,0.2539736,118060.0,118050.0,1.51471907]
[1752984666960,0.2539736,118060.0,118050.0,1.55729293]
[1752984667457,0.2539736,118060.0,118050.0,1.55829293]
[1752984667968,0.2539736,118060.0,118050.0,1.58829293]
[1752984668163,0.2539736,118060.0,118050.0,1.1078132]
[1752984668370,0.2539736,118060.0,118050.0,1.27829293]
[1752984669159,0.2539736,118060.0,118050.0,1.02829293]
[1752984670167,0.2539736,118060.0,118050.0,0.8578132]
[1752984670467,0.2539736,118060.0,118050.0,1.02829293]
[1752984670671,0.2539736,118060.0,118050.0,1.09649746]
[1752984671167,0.2539736,118060.0,118050.0,0.92601773]
[1752984671467,0.2539736,118060.0,118050.0,1.97705746]
[1752984671970,0.2539736,118060.0,118050.0,1.69705746]
[1752984672268,0.2539736,118060.0,118050.0,1.97705746]
[1752984673271,0.2539736,118060.0,118050.0,1.52657773]
[1752984673460,0.2539736,118060.0,118050.0,1.98705746]
[1752984673965,0.2539736,118060.0,118050.0,1.45657773]
[1752984674170,0.2539736,118060.0,118050.0,1.93705746]
[1752984674372,0.2539736,118060.0,118050.0,1.70705746]
[1752984674670,0.2539736,118060.0,118050.0,1.95705746]
[1752984674871,0.2539736,118060.0,118050.0,1.52657773]
[1752984675067,0.2539736,118060.0,118050.0,2.00705746]
[1752984676174,0.2539736,118060.0,118050.0,1.91875746]
[1752984676374,0.2539736,118060.0,118050.0,2.29875746]
[1752984682680,0.2539736,118060.0,118050.0,2.12934146]
[1752984683585,0.2539736,118060.0,118050.0,1.77934146]
[1752984683777,0.2539736,118060.0,118050.0,2.12934146]
[1752984684291,0.2539736,118060.0,118050.0,1.74934146]
[1752984684478,0.2539736,118060.0,118050.0,2.09934146]
[1752984685075,0.2539736,118060.0,118050.0,1.60886173]
[1752984685384,0.2539736,118060.0,118050.0,2.11934146]
[1752984686786,0.2539736,118060.0,118050.0,1.77934146]
[1752984687086,0.2588236,118060.0,118050.0,1.77934146]
[1752984689189,0.2588236,118060.0,118050.0,1.73672415]
[1752984690786,0.2539736,118060.0,118050.0,1.73672415]
[1752984692386,0.2588236,118060.0,118050.0,1.73672415]
[1752984693290,0.2588236,118060.0,118050.0,1.60886173]
[1752984693587,0.2588236,118060.0,118050.0,1.73672415]
[1752984695096,0.2588236,118060.0,118050.0,1.60886173]
[1752984695291,0.2588236,118060.0,118050.0,1.73672415]
[1752984695597,0.2539736,118060.0,118050.0,1.73672415]
[1752984696192,0.2539736,118060.0,118050.0,1.79758219]
[1752984696393,0.2539736,118060.0,118050.0,1.73672415]
[1752984697092,0.2588236,118060.0,118050.0,1.73672415]
[1752984699094,0.2588236,118060.0,118050.0,1.60886173]
[1752984699393,0.2588236,118060.0,118050.0,1.73672415]
[1752984701896,0.46726602,118060.0,118050.0,1.13616415]
[1752984702093,0.61345767,118060.0,118050.0,0.6835]
[1752984702394,0.61345767,118060.0,118050.0,0.6535]
[1752984702595,0.61345767,118060.0,118050.0,0.67629]
[1752984702893,0.61345767,118060.0,118050.0,0.31549]
[1752984703695,0.61345767,118060.0,118050.0,0.33895]
[1752984703894,0.61545767,118060.0,118050.0,0.33895]
[1752984704397,0.61545767,118060.0,118050.0,0.33795]
[1752984705596,0.61545767,118060.0,118050.0,0.04625]
[1752984710598,0.35973283,118060.0,118050.0,0.04625]
[1752984710899,0.61545767,118060.0,118050.0,0.04625]
[1752984711499,0.2500272,118050.0,118040.0,0.44214]
[1752984711702,0.38260962,118050.0,118040.0,0.57000242]
[1752984711898,0.38260962,118050.0,118040.0,0.44214]
[1752984712100,0.54774803,118050.0,118040.0,0.03963]
[1752984712306,0.41988561,118050.0,118040.0,0.03963]
[1752984713603,0.40157877,118050.0,118040.0,0.06306]
[1752984714304,1.00073877,118050.0,118040.0,0.06406]
[1752984715312,1.23367635,118050.0,118040.0,0.001]
[1752984715602,1.38283363,118050.0,118040.0,0.001]
[1752984715803,1.51069605,118050.0,118040.0,0.001]
[1752984717410,1.57864718,118050.0,118040.0,0.001]
[1752984717711,1.58756718,118050.0,118040.0,0.001]
[1752984718734,1.58756718,118050.0,118030.0,0.04779]
[1752984718735,0.2500416,118040.0,118030.0,0.07908]
[1752984718912,0.87128644,118040.0,118030.0,0.07908]
[1752984719311,0.6155616,118040.0,118030.0,0.07908]
[1752984719508,0.87128644,118040.0,118030.0,0.07908]
[1752984720309,0.87328644,118040.0,118030.0,0.07908]
[1752984721906,0.51248644,118040.0,118030.0,0.07908]
[1752984722610,0.87328644,118040.0,118030.0,0.07908]
[1752984723006,0.74542402,118040.0,118030.0,0.07908]
[1752984723206,0.6175616,118040.0,118030.0,0.05565]
[1752984723406,0.74542402,118040.0,118030.0,0.05565]
[1752984723612,0.87328644,118040.0,118030.0,0.07908]
[1752984725001,0.1693559,118030.0,118020.0,0.37607]
[1752984725208,0.99383832,118030.0,118020.0,0.06306]
[1752984725507,0.2500703,118020.0,118010.0,1.31053]
[1752984725701,0.2500703,118020.0,118010.0,0.57043]
[1752984725702,0.51051514,118020.0,118010.0,0.57043]
[1752984725904,0.1693846,118010.0,118000.0,0.07151288]
[1752984726110,0.38266702,118010.0,118000.0,0.43753288]
[1752984726313,0.38266702,118010.0,118000.0,0.08753288]
[1752984726511,0.99558702,118010.0,118000.0,0.08753288]
[1752984727417,0.8677246,118010.0,118000.0,0.08753288]
[1752984727618,0.8677246,118010.0,118000.0,0.2153953]
[1752984727914,0.99558702,118010.0,118000.0,0.2178353]
[1752984728209,0.8677246,118010.0,118000.0,0.09297288]
[1752984728413,0.99558702,118010.0,118000.0,0.09297288]
[1752984728613,0.99558702,118010.0,118000.0,0.2238353]
[1752984728814,0.99558702,118010.0,118000.0,0.2218353]
[1752984729032,1.03838945,118010.0,118000.0,0.09397288]
[1752984729217,1.03838945,118010.0,118000.0,0.09097288]
[1752984729613,0.8677246,118010.0,118000.0,0.09097288]
[1752984729915,1.03838945,118010.0,118000.0,0.09097288]
[1752984730714,0.8677246,118010.0,118000.0,0.26037188]
[1752984731020,0.8677246,118010.0,118000.0,0.09097288]
[1752984733218,1.03838945,118010.0,118000.0,0.09097288]
[1752984733418,1.03838945,118010.0,118000.0,0.26037188]
[1752984734015,1.03838945,118010.0,118000.0,0.09097288]
[1752984734718,0.42546945,118010.0,118000.0,0.09097288]
[1752984734917,1.04274945,118010.0,118000.0,0.09097288]
[1752984737114,0.8720846,118010.0,118000.0,0.09097288]
[1752984737617,1.04274945,118010.0,118000.0,0.09097288]
[1752984739114,1.04274945,118010.0,118000.0,0.00945288]
[1752984740318,1.40354945,118010.0,118000.0,0.00945288]
[1752984740719,1.40354945,118010.0,118000.0,0.001]
[1752984741811,0.187099,118000.0,117990.0,0.02421]
[1752984742017,0.51990651,118000.0,117990.0,0.02]
[1752984742218,0.51990651,118000.0,117990.0,0.0285884]
[1752984742418,0.57173651,118000.0,117990.0,0.0285884]
[1752984743018,0.57173651,118000.0,117990.0,0.0295884]
[1752984743323,0.40107166,118000.0,117990.0,0.0295884]
[1752984743523,0.58999157,118000.0,117990.0,0.0295884]
[1752984743722,0.58999157,118000.0,117990.0,0.0305884]
[1752984744422,0.95079157,118000.0,117990.0,0.0305884]
[1752984745223,0.95079157,118000.0,117990.0,0.022]
[1752984745522,0.78012672,118000.0,117990.0,0.022]
[1752984745712,0.95079157,118000.0,117990.0,0.022]
[1752984747619,0.95079157,118000.0,117990.0,0.03061862]
[1752984747822,0.95079157,118000.0,117990.0,0.022]
[1752984748223,0.78012672,118000.0,117990.0,0.022]
[1752984748424,0.95079157,118000.0,117990.0,0.022]
[1752984748621,0.78012672,118000.0,117990.0,0.022]
[1752984748925,0.95079157,118000.0,117990.0,0.022]
[1752984749319,0.78012672,118000.0,117990.0,0.022]
[1752984749522,0.95079157,118000.0,117990.0,0.03047876]
[1752984750025,0.58999157,118000.0,117990.0,0.03047876]
[1752984750221,0.41932672,118000.0,117990.0,0.03047876]
[1752984750418,1.21287157,118000.0,117990.0,0.07914876]
[1752984751426,1.04220672,118000.0,117990.0,0.07914876]
[1752984751614,1.21287157,118000.0,117990.0,0.07914876]
[1752984753025,1.04220672,118000.0,117990.0,0.07914876]
[1752984753329,1.21287157,118000.0,117990.0,0.07914876]
[1752984754421,1.04220672,118000.0,117990.0,0.07914876]
[1752984754621,1.21287157,118000.0,117990.0,0.07914876]
[1752984756530,1.21287157,118000.0,117990.0,0.05468876]
[1752984757433,1.04220672,118000.0,117990.0,0.05468876]
[1752984757731,1.21287157,118000.0,117990.0,0.11008876]
[1752984758434,0.37697402,118000.0,117990.0,0.45257701]
[1752984758728,0.37697402,118000.0,117990.0,1.15833701]
[1752984758930,0.37697402,118000.0,117990.0,1.11566013]
[1752984759125,0.35804706,118000.0,117990.0,0.98767216]
[1752984759330,0.339792,118000.0,117990.0,0.82566013]
[1752984759532,0.339792,118000.0,117990.0,1.08566013]
[1752984759731,0.339792,118000.0,117990.0,1.12566013]
[1752984760927,0.339792,118000.0,117990.0,1.11832303]
[1752984762531,0.339792,118000.0,117990.0,0.69767216]
[1752984762733,0.339792,118000.0,117990.0,0.86832303]
[1752984763037,0.339792,118000.0,117990.0,1.11832303]
[1752984763432,0.339792,118000.0,117990.0,0.69767216]
[1752984763629,0.339792,118000.0,117990.0,1.15832303]
[1752984764735,0.339792,118000.0,117990.0,0.71767216]
[1752984764936,0.339792,118000.0,117990.0,1.13832303]
[1752984765826,0.339792,118000.0,117990.0,0.72767216]
[1752984766040,0.339792,118000.0,117990.0,0.89832303]
[1752984767353,0.339792,118000.0,117990.0,0.95918107]
[1752984768032,0.339792,118000.0,117990.0,0.89832303]
[1752984768233,0.339792,118000.0,117990.0,1.17918107]
[1752984768933,0.339792,118000.0,117990.0,1.0085302]
[1752984769133,0.339792,118000.0,117990.0,0.7785302]
[1752984769334,0.339792,118000.0,117990.0,0.94918107]
[1752984769937,0.339792,118000.0,117990.0,1.21918107]
[1752984771739,0.339792,118000.0,117990.0,1.17918107]
[1752984773041,0.339792,118000.0,117990.0,1.0085302]
[1752984773235,0.339792,118000.0,117990.0,1.0685302]
[1752984773439,0.339792,118000.0,117990.0,1.23918107]
[1752984773629,0.08569,118000.0,117990.0,1.23918107]
[1752984773934,0.3401544,118010.0,118000.0,0.254259]
[1752984774238,0.3401544,118010.0,118000.0,1.40546987]
[1752984775936,0.3401544,118010.0,118000.0,0.78570987]
[1752984776136,0.3401544,118010.0,118000.0,1.40474987]
[1752984776336,0.3401544,118010.0,118000.0,1.234099]
[1752984781943,0.3401544,118010.0,118000.0,1.0647]
[1752984782242,0.3401544,118010.0,118000.0,0.873299]
[1752984785039,0.3401544,118010.0,118000.0,1.00129117]
[1752984785245,0.46814657,118010.0,118000.0,1.36209117]
[1752984786146,0.3401544,118010.0,118000.0,1.36209117]
[1752984786445,0.46814657,118010.0,118000.0,1.36209117]
[1752984787146,0.3401544,118010.0,118000.0,1.36209117]
[1752984787447,0.46814657,118010.0,118000.0,1.36209117]
[1752984787949,0.3401544,118010.0,118000.0,1.36209117]
[1752984788145,0.46814657,118010.0,118000.0,1.36209117]
[1752984788440,0.3401544,118010.0,118000.0,1.36209117]
[1752984788646,0.46814657,118010.0,118000.0,1.36209117]
[1752984789142,0.46814657,118010.0,118000.0,1.234099]
[1752984789546,0.46814657,118010.0,118000.0,1.36209117]
[1752984790848,0.46814657,118010.0,118000.0,1.00129117]
[1752984791050,0.46814657,118010.0,118000.0,1.36209117]
[1752984792353,0.3401544,118010.0,118000.0,1.36209117]
[1752984792551,0.46814657,118010.0,118000.0,1.36209117]
[1752984793547,0.35844118,118010.0,118000.0,1.36209117]
[1752984793745,0.48643335,118010.0,118000.0,1.234099]
[1752984793949,0.35844118,118010.0,118000.0,1.36209117]
[1752984794153,0.48643335,118010.0,118000.0,1.36209117]
[1752984795352,0.4864356,118010.0,118000.0,1.36209117]
[1752984796053,0.35844343,118010.0,118000.0,1.36209117]
[1752984796253,0.4864356,118010.0,118000.0,1.36209117]
[1752984796455,0.4864356,118010.0,118000.0,1.234099]
[1752984796651,0.4864356,118010.0,118000.0,1.36209117]
[1752984797358,0.4864356,118010.0,118000.0,1.234099]
[1752984797555,0.4864356,118010.0,118000.0,1.36209117]
[1752984802855,0.4864356,118010.0,118000.0,1.06005]
[1752984803056,0.35844343,118010.0,118000.0,0.99664117]
[1752984803255,0.4864356,118010.0,118000.0,0.99664117]
[1752984803456,0.4864356,118010.0,118000.0,1.00114117]
[1752984805162,0.46814657,118010.0,118000.0,1.36194117]
[1752984805964,0.3401544,118010.0,118000.0,1.36194117]
[1752984806262,0.46814657,118010.0,118000.0,1.36194117]
[1752984806561,0.3401544,118010.0,118000.0,1.36194117]
[1752984806751,0.46814657,118010.0,118000.0,1.36194117]
[1752984807862,0.3401544,118010.0,118000.0,1.36194117]
[1752984808062,0.46814657,118010.0,118000.0,1.36194117]
[1752984809265,0.3401544,118010.0,118000.0,1.55079138]
[1752984809465,0.46814657,118010.0,118000.0,1.55079138]
[1752984810766,0.3401544,118010.0,118000.0,1.55079138]
[1752984811063,0.46814657,118010.0,118000.0,1.55079138]
[1752984811665,0.3401544,118010.0,118000.0,1.55079138]
[1752984811964,0.46814657,118010.0,118000.0,1.55079138]
[1752984812368,0.3401544,118010.0,118000.0,1.55079138]
[1752984812565,0.46814657,118010.0,118000.0,1.55079138]
[1752984814475,0.2588844,118010.0,118000.0,1.55079138]
[1752984814663,0.2588844,118010.0,118000.0,1.92079138]
[1752984814858,0.2588844,118010.0,118000.0,1.55079138]
[1752984815087,0.2588844,118010.0,118000.0,1.90079138]
[1752984816273,0.2588844,118010.0,118000.0,1.29480704]
[1752984816476,0.2588844,118010.0,118000.0,1.84993334]
[1752984816770,0.2588844,118010.0,118000.0,1.233949]
[1752984816970,0.2588844,118010.0,118000.0,1.48993334]
[1752984817275,0.2588844,118010.0,118000.0,1.86993334]
[1752984817475,0.2588844,118010.0,118000.0,1.613949]
[1752984817681,0.2588844,118010.0,118000.0,1.81993334]
[1752984818179,0.2588844,118010.0,118000.0,1.233949]
[1752984818376,0.2588844,118010.0,118000.0,1.85993334]
[1752984820483,0.2588844,118010.0,118000.0,1.48993334]
[1752984821881,0.2588844,118010.0,118000.0,1.233949]
[1752984822076,0.2588844,118010.0,118000.0,1.48993334]
[1752984823684,0.3007544,118010.0,118000.0,1.48993334]
[1752984823880,0.42874657,118010.0,118000.0,1.48993334]
[1752984824983,0.2764644,118010.0,118000.0,1.48993334]
[1752984825985,0.2928944,118010.0,118000.0,1.85993334]
[1752984826185,0.3171844,118010.0,118000.0,1.85993334]
[1752984826386,0.3407344,118010.0,118000.0,1.48993334]
[1752984830185,0.3407344,118010.0,118000.0,1.233949]
[1752984830486,0.2764644,118010.0,118000.0,1.48993334]
[1752984830787,0.3010844,118010.0,118000.0,1.233949]
[1752984830988,0.3010844,118010.0,118000.0,1.48993334]
[1752984831190,0.3405044,118010.0,118000.0,1.48993334]
[1752984833092,0.3405044,118010.0,118000.0,1.55079138]
[1752984833689,0.3405044,118010.0,118000.0,1.48993334]
[1752984834805,0.3175144,118010.0,118000.0,1.48993334]
[1752984837189,0.3175144,118010.0,118000.0,1.233949]
[1752984837392,0.3175144,118010.0,118000.0,1.48993334]
[1752984837793,0.40445657,118010.0,118000.0,1.48993334]
[1752984837994,0.2764644,118010.0,118000.0,1.233949]
[1752984838294,0.29475625,118010.0,118000.0,1.48993334]
[1752984839798,0.29475625,118010.0,118000.0,1.233949]
[1752984840009,0.29475625,118010.0,118000.0,1.48993334]
[1752984841901,0.29475625,118010.0,118000.0,1.233949]
[1752984842089,0.31937625,118010.0,118000.0,1.233949]
[1752984842294,0.31937625,118010.0,118000.0,1.48993334]
[1752984843115,0.29475625,118010.0,118000.0,1.48993334]
[1752984843300,0.29475625,118010.0,118000.0,1.233949]
[1752984843502,0.29475625,118010.0,118000.0,1.48993334]
[1752984843703,0.2764644,118010.0,118000.0,1.55079138]
[1752984844800,0.2611644,118010.0,118000.0,1.55079138]
[1752984845097,0.21794587,118020.0,118010.0,0.2562347]
[1752984845098,0.2163174,118020.0,118010.0,0.2562347]
[1752984845302,0.23461116,118020.0,118010.0,1.23301904]
[1752984845494,0.18767746,118020.0,118010.0,1.10502687]
[1752984845692,0.1693837,118020.0,118010.0,1.23301904]
[1752984845899,0.1693837,118020.0,118010.0,1.29387708]
[1752984846298,0.1703837,118020.0,118010.0,1.16588491]
[1752984846498,0.1703837,118020.0,118010.0,0.80688491]
[1752984846699,0.1703837,118020.0,118010.0,1.18688491]
[1752984846894,0.1693837,118020.0,118010.0,1.18788491]
[1752984847999,0.1693837,118020.0,118010.0,1.05989274]
[1752984848205,0.1693837,118020.0,118010.0,1.18788491]
[1752984848599,0.1693837,118020.0,118010.0,1.31587708]
[1752984848902,0.1693837,118020.0,118010.0,1.18788491]
[1752984849308,0.1693837,118020.0,118010.0,1.31587708]
[1752984850504,0.1693837,118020.0,118010.0,1.25501904]
[1752984850705,0.1693837,118020.0,118010.0,1.62279159]
[1752984851605,0.1693837,118020.0,118010.0,1.54671904]
[1752984852004,0.1693837,118020.0,118010.0,1.2907347]
[1752984852205,0.1693837,118020.0,118010.0,1.41872687]
[1752984852808,0.1693837,118020.0,118010.0,1.2907347]
[1752984853104,0.1693837,118020.0,118010.0,1.41872687]
[1752984853304,0.1693837,118020.0,118010.0,1.47959838]
[1752984854404,0.1693837,118020.0,118010.0,1.35160621]
[1752984854614,0.1693837,118020.0,118010.0,1.47959838]
[1752984858811,0.1693837,118020.0,118010.0,1.35160621]
[1752984859011,0.1739737,118020.0,118010.0,1.10959838]
[1752984860414,0.1739737,118020.0,118010.0,1.43959838]
[1752984860914,0.1739737,118020.0,118010.0,2.04447838]
[1752984861215,0.1739737,118020.0,118010.0,2.08447838]
[1752984861714,0.1739737,118020.0,118010.0,1.95648621]
[1752984861914,0.1739737,118020.0,118010.0,2.08447838]
[1752984862509,0.1739737,118020.0,118010.0,1.95648621]
[1752984862717,0.1739737,118020.0,118010.0,2.08447838]
[1752984864608,0.1739737,118020.0,118010.0,1.95648621]
[1752984864810,0.1739737,118020.0,118010.0,2.08447838]
[1752984865012,0.50953804,118020.0,118010.0,1.18222151]
[1752984865215,0.50953804,118020.0,118010.0,0.98765]
[1752984865817,0.2535537,118020.0,118010.0,1.11564217]
[1752984866019,0.50953804,118020.0,118010.0,1.11464217]
[1752984866218,0.50953804,118020.0,118010.0,1.11364217]
[1752984866511,0.50953804,118020.0,118010.0,0.38113]
[1752984866815,0.87233804,118020.0,118010.0,0.37113]
[1752984867214,0.51153804,118020.0,118010.0,0.37113]
[1752984867405,0.51153804,118020.0,118010.0,0.34811]
[1752984868419,0.51253804,118020.0,118010.0,0.06416]
[1752984868621,0.2536147,118010.0,118000.0,1.17381217]
[1752984868820,0.38160687,118010.0,118000.0,1.32381217]
[1752984869519,0.38160687,118010.0,118000.0,1.02388368]
[1752984869723,0.38160687,118010.0,118000.0,1.32381217]
[1752984870020,0.38160687,118010.0,118000.0,0.96301217]
[1752984871021,0.38160687,118010.0,118000.0,0.83502]
[1752984871225,0.38160687,118010.0,118000.0,0.96301217]
[1752984871524,0.38160687,118010.0,118000.0,0.71929217]
[1752984871917,0.38160687,118010.0,118000.0,0.72424217]
[1752984872721,0.38160687,118010.0,118000.0,0.59625]
[1752984872920,0.38160687,118010.0,118000.0,0.72424217]
[1752984873626,0.38160687,118010.0,118000.0,0.59625]
[1752984873817,0.38160687,118010.0,118000.0,0.72424217]
[1752984874520,0.2536147,118010.0,118000.0,0.89364127]
[1752984874722,0.38160687,118010.0,118000.0,0.89364127]
[1752984875122,0.38160687,118010.0,118000.0,0.72424217]
[1752984875723,0.38160687,118010.0,118000.0,0.89364127]
[1752984877214,0.38160687,118010.0,118000.0,0.59625]
[1752984877419,0.38160687,118010.0,118000.0,0.89364127]
[1752984879829,0.38160687,118010.0,118000.0,1.02163344]
[1752984881825,0.2536147,118010.0,118000.0,0.7656491]
[1752984882026,0.38160687,118010.0,118000.0,1.02163344]
[1752984887027,0.38160687,118010.0,118000.0,0.7656491]
[1752984887220,0.38160687,118010.0,118000.0,0.89364127]
[1752984888029,0.2536147,118010.0,118000.0,0.89364127]
[1752984888229,0.38160687,118010.0,118000.0,0.89364127]
[1752984889128,0.38160687,118010.0,118000.0,0.7656491]
[1752984889331,0.38160687,118010.0,118000.0,0.89364127]
[1752984889624,0.2536147,118010.0,118000.0,0.7656491]
[1752984889829,0.38160687,118010.0,118000.0,0.89364127]
[1752984890930,0.2536147,118010.0,118000.0,0.89364127]
[1752984891228,0.38160687,118010.0,118000.0,0.89364127]
[1752984892129,0.38160687,118010.0,118000.0,0.7656491]
[1752984892427,0.38160687,118010.0,118000.0,0.89364127]
[1752984892830,0.38160687,118010.0,118000.0,0.89692127]
[1752984893630,0.38160687,118010.0,118000.0,0.95779278]
[1752984893833,0.2536147,118010.0,118000.0,0.95779278]
[1752984894027,0.38160687,118010.0,118000.0,0.95779278]
[1752984897031,0.2536147,118010.0,118000.0,0.95779278]
[1752984897330,0.38160687,118010.0,118000.0,0.95779278]
[1752984900430,0.38160687,118010.0,118000.0,1.08578495]
[1752984900936,0.2536147,118010.0,118000.0,0.95779278]
[1752984901337,0.38160687,118010.0,118000.0,1.08578495]
[1752984901639,0.38160687,118010.0,118000.0,0.95779278]
[1752984904541,0.27255164,118010.0,118000.0,0.82980061]
[1752984904740,0.27255164,118010.0,118000.0,0.95779278]
[1752984904930,0.40054381,118010.0,118000.0,0.95779278]
[1752984905141,0.27255164,118010.0,118000.0,0.95779278]
[1752984905438,0.40054381,118010.0,118000.0,0.59699278]
[1752984906251,0.27255164,118010.0,118000.0,0.59699278]
[1752984906539,0.40054381,118010.0,118000.0,0.59699278]
[1752984907039,0.40054381,118010.0,118000.0,0.95779278]
[1752984907441,0.40054381,118010.0,118000.0,0.46900061]
[1752984907738,0.40054381,118010.0,118000.0,0.95779278]
[1752984908133,0.40054381,118010.0,118000.0,0.59699278]
[1752984908339,0.40054381,118010.0,118000.0,0.95779278]
[1752984909837,0.40054381,118010.0,118000.0,0.78839368]
[1752984910037,0.52853598,118010.0,118000.0,0.29233151]
[1752984910243,0.52853598,118010.0,118000.0,0.14233151]
[1752984910543,0.40054381,118010.0,118000.0,0.14233151]
[1752984910740,0.41878657,118010.0,118000.0,0.08146]
[1752984911454,0.40054381,118010.0,118000.0,0.08146]
[1752984912444,0.40054381,118010.0,118000.0,0.06542]
[1752984912742,0.40054381,118010.0,118000.0,0.04211]
[1752984913543,0.76134381,118010.0,118000.0,0.04211]
[1752984914345,0.76134381,118010.0,118000.0,0.08143]
[1752984914850,0.77957817,118010.0,118000.0,0.08143]
[1752984915242,0.41877817,118010.0,118000.0,0.08143]
[1752984915542,0.40054381,118010.0,118000.0,0.08143]
[1752984915746,0.4187767,118010.0,118000.0,0.08143]
[1752984915946,0.40054381,118010.0,118000.0,0.08143]